[Event "*** SCC Grand Prix: Titled Tuesday Blitz"]
[Site "Chess.com"]
[Date "2020.08.11"]
[Round "6"]
[White "Kildepiotr"]
[Black "Guenplen"]
[Result "1-0"]
[WhiteElo "2641"]
[BlackElo "2878"]
[TimeControl "180+1"]
[EndTime "11:09:53 PDT"]
[Termination "Kildepiotr won on time"]

1. Nf3 {[%clk 0:03:00.9]} 1... d5 {[%clk 0:02:59.3]} 2. g3 {[%clk 0:03:00.9]}
2... c6 {[%clk 0:02:59.2]} 3. Bg2 {[%clk 0:03:01.4]} 3... Bg4 {[%clk 0:02:59.5]}
4. O-O {[%clk 0:03:02]} 4... Nd7 {[%clk 0:02:59.2]} 5. d3 {[%clk 0:03:02.5]}
5... e5 {[%clk 0:02:50.2]} 6. Nbd2 {[%clk 0:03:02.2]} 6... Ngf6 {[%clk
0:02:49.6]} 7. e4 {[%clk 0:03:01.7]} 7... dxe4 {[%clk 0:02:49.3]} 8. dxe4 {[%clk
0:03:01.3]} 8... Bc5 {[%clk 0:02:49.3]} 9. Qe1 {[%clk 0:02:58.8]} 9... O-O
{[%clk 0:02:44.7]} 10. h3 {[%clk 0:02:58.7]} 10... Bh5 {[%clk 0:02:44.1]} 11.
Nb3 {[%clk 0:02:56.4]} 11... Bb6 {[%clk 0:02:42.9]} 12. Nh4 {[%clk 0:02:54.4]}
12... Re8 {[%clk 0:02:35.3]} 13. Nf5 {[%clk 0:02:52.5]} 13... Qc7 {[%clk
0:02:32]} 14. Be3 {[%clk 0:02:48.5]} 14... Bg6 {[%clk 0:02:30.4]} 15. Nh4 {[%clk
0:02:43.1]} 15... Rad8 {[%clk 0:02:23.1]} 16. Nxg6 {[%clk 0:02:42.7]} 16... hxg6
{[%clk 0:02:22.7]} 17. Rd1 {[%clk 0:02:41.5]} 17... Bxe3 {[%clk 0:02:18.8]} 18.
Qxe3 {[%clk 0:02:41]} 18... Qb6 {[%clk 0:02:18.8]} 19. Qc3 {[%clk 0:02:36]}
19... Nf8 {[%clk 0:01:55.9]} 20. Bf3 {[%clk 0:02:26.9]} 20... g5 {[%clk
0:01:45.7]} 21. Rxd8 {[%clk 0:02:24.9]} 21... Qxd8 {[%clk 0:01:45]} 22. Rd1
{[%clk 0:02:17.5]} 22... Qb6 {[%clk 0:01:38.6]} 23. a4 {[%clk 0:02:11.7]} 23...
Qc7 {[%clk 0:01:01.1]} 24. Qd2 {[%clk 0:01:49.3]} 24... Ne6 {[%clk 0:01:00.1]}
25. Qd6 {[%clk 0:01:46.6]} 25... Rd8 {[%clk 0:00:58.5]} 26. Qxc7 {[%clk
0:01:45.8]} 26... Rxd1+ {[%clk 0:00:59.4]} 27. Bxd1 {[%clk 0:01:45.8]} 27...
Nxc7 {[%clk 0:01:00.2]} 28. Na5 {[%clk 0:01:43.4]} 28... b5 {[%clk 0:00:50.6]}
29. Nxc6 {[%clk 0:01:40.5]} 29... bxa4 {[%clk 0:00:50.7]} 30. f3 {[%clk
0:01:36]} 30... Nd7 {[%clk 0:00:43.8]} 31. Nxa7 {[%clk 0:01:34.7]} 31... Nc5
{[%clk 0:00:40.3]} 32. Kf2 {[%clk 0:01:24.5]} 32... Kf8 {[%clk 0:00:31.4]} 33.
Nc8 {[%clk 0:01:23.1]} 33... N7e6 {[%clk 0:00:26.3]} 34. Ke3 {[%clk 0:01:18.3]}
34... Nd4 {[%clk 0:00:23.1]} 35. Nb6 {[%clk 0:01:15]} 35... Nb5 {[%clk
0:00:19.6]} 36. c3 {[%clk 0:01:08.9]} 36... a3 {[%clk 0:00:19.4]} 37. bxa3
{[%clk 0:01:08.8]} 37... Nxa3 {[%clk 0:00:20.1]} 38. Be2 {[%clk 0:00:58.7]}
38... Nb1 {[%clk 0:00:15.2]} 39. Nd5 {[%clk 0:00:57.7]} 39... f6 {[%clk
0:00:15.4]} 40. Bd3 {[%clk 0:00:54.1]} 40... Na3 {[%clk 0:00:14.1]} 41. c4
{[%clk 0:00:44.6]} 41... Kf7 {[%clk 0:00:06.5]} 42. Kd2 {[%clk 0:00:44.1]} 42...
g6 {[%clk 0:00:06.7]} 43. Kc3 {[%clk 0:00:42.9]} 43... Ke6 {[%clk 0:00:06.5]}
44. Be2 {[%clk 0:00:37.8]} 44... f5 {[%clk 0:00:05.1]} 45. exf5+ {[%clk
0:00:32.2]} 45... gxf5 {[%clk 0:00:04.8]} 46. Kb2 {[%clk 0:00:32.1]} 46... Nxc4+
{[%clk 0:00:03.9]} 47. Bxc4 {[%clk 0:00:31.6]} 47... Kd6 {[%clk 0:00:04.8]} 48.
Kc3 {[%clk 0:00:30.9]} 48... f4 {[%clk 0:00:03.9]} 49. gxf4 {[%clk 0:00:26.6]}
49... gxf4 {[%clk 0:00:04.8]} 50. Nf6 {[%clk 0:00:24.8]} 50... Ke7 {[%clk
0:00:04.9]} 51. Ne4 {[%clk 0:00:23.8]} 51... Nd7 {[%clk 0:00:04.9]} 52. Bb5
{[%clk 0:00:22.2]} 52... Nf8 {[%clk 0:00:04.8]} 53. Kd2 {[%clk 0:00:21.2]} 53...
Ne6 {[%clk 0:00:04.1]} 54. Be2 {[%clk 0:00:18.9]} 54... Nd4 {[%clk 0:00:03.8]}
55. Bd1 {[%clk 0:00:18.8]} 55... Kf7 {[%clk 0:00:02.8]} 56. Ke1 {[%clk
0:00:18.9]} 56... Kg6 {[%clk 0:00:03.3]} 57. Kf2 {[%clk 0:00:19.4]} 57... Kh5
{[%clk 0:00:03.4]} 58. Kg2 {[%clk 0:00:18.7]} 58... Nf5 {[%clk 0:00:03.4]} 59.
Ba4 {[%clk 0:00:16.8]} 59... Ne3+ {[%clk 0:00:04.3]} 60. Kg1 {[%clk 0:00:15.8]}
60... Nf5 {[%clk 0:00:05.2]} 61. Bd7 {[%clk 0:00:14.6]} 61... Nd4 {[%clk
0:00:06.1]} 62. Bg4+ {[%clk 0:00:14.3]} 62... Kg6 {[%clk 0:00:06.8]} 63. h4
{[%clk 0:00:13.7]} 63... Nc2 {[%clk 0:00:07.5]} 64. Kg2 {[%clk 0:00:13.5]} 64...
Ne3+ {[%clk 0:00:05.9]} 65. Kh3 {[%clk 0:00:14.4]} 65... Nc2 {[%clk 0:00:06.8]}
66. h5+ {[%clk 0:00:14.3]} 66... Kh6 {[%clk 0:00:06.4]} 67. Nd6 {[%clk
0:00:12.4]} 67... Kg5 {[%clk 0:00:04.8]} 68. Ne4+ {[%clk 0:00:09.9]} 68... Kh6
{[%clk 0:00:04.9]} 69. Kh4 {[%clk 0:00:09.2]} 69... Ne3 {[%clk 0:00:05.4]} 70.
Nd6 {[%clk 0:00:08.3]} 70... Ng2+ {[%clk 0:00:05.4]} 71. Kh3 {[%clk 0:00:08.4]}
71... Ne1 {[%clk 0:00:04.8]} 72. Nf7+ {[%clk 0:00:07.9]} 72... Kg7 {[%clk
0:00:03.8]} 73. Nxe5 {[%clk 0:00:08.8]} 73... Kf6 {[%clk 0:00:03.8]} 74. Nc4
{[%clk 0:00:08.5]} 74... Nd3 {[%clk 0:00:03.5]} 75. Kh4 {[%clk 0:00:07.8]} 75...
Ne1 {[%clk 0:00:03.3]} 76. Nd6 {[%clk 0:00:07.3]} 76... Ng2+ {[%clk 0:00:03]}
77. Kh3 {[%clk 0:00:07.7]} 77... Ne1 {[%clk 0:00:02.5]} 78. Ne4+ {[%clk
0:00:08.6]} 78... Kg7 {[%clk 0:00:01.5]} 79. Kh4 {[%clk 0:00:08.7]} 79... Nd3
{[%clk 0:00:01.9]} 80. Kg5 {[%clk 0:00:08.3]} 80... Kh8 {[%clk 0:00:02.2]} 81.
h6 {[%clk 0:00:08.8]} 81... Ne5 {[%clk 0:00:02.3]} 82. Kxf4 {[%clk 0:00:07.3]}
82... Ng6+ {[%clk 0:00:02.4]} 83. Kg5 {[%clk 0:00:07.2]} 83... Ne7 {[%clk
0:00:03.3]} 84. f4 {[%clk 0:00:07.1]} 84... Nc6 {[%clk 0:00:03]} 85. f5 {[%clk
0:00:06.6]} 85... Ne5 {[%clk 0:00:03]} 86. f6 {[%clk 0:00:06.1]} 86... Nf7+
{[%clk 0:00:03.5]} 87. Kh5 {[%clk 0:00:05.8]} 87... Ne5 {[%clk 0:00:03.6]} 88.
Be6 {[%clk 0:00:05.4]} 88... Ng6 {[%clk 0:00:03.4]} 89. f7 {[%clk 0:00:04.6]}
89... Nf4+ {[%clk 0:00:03.4]} 90. Kg5 {[%clk 0:00:03]} 90... Nxe6+ {[%clk
0:00:04.3]} 91. Kf6 {[%clk 0:00:03.3]} 91... Nf8 {[%clk 0:00:04.7]} 92. Ng5
{[%clk 0:00:03.4]} 92... Nd7+ {[%clk 0:00:04.7]} 93. Ke7 {[%clk 0:00:03.5]}
93... Nf8 {[%clk 0:00:05.4]} 94. Ne6 {[%clk 0:00:02]} 94... Ng6+ {[%clk
0:00:05.4]} 95. Kf6 {[%clk 0:00:02.9]} 95... Nf8 {[%clk 0:00:03.7]} 96. Nf4
{[%clk 0:00:02.9]} 96... Nd7+ {[%clk 0:00:03.1]} 97. Ke7 {[%clk 0:00:02.3]} 1-0

[Event "*** SCC Grand Prix: Titled Tuesday Blitz"]
[Site "Chess.com"]
[Date "2020.08.11"]
[Round "6"]
[White "Panterov"]
[Black "djano"]
[Result "0-1"]
[WhiteElo "2215"]
[BlackElo "2414"]
[TimeControl "180+1"]
[EndTime "11:10:06 PDT"]
[Termination "djano won on time"]

1. e4 {[%clk 0:03:00.9]} 1... g6 {[%clk 0:02:52.3]} 2. g3 {[%clk 0:03:00]} 2...
Bg7 {[%clk 0:02:52.2]} 3. Bg2 {[%clk 0:03:00.9]} 3... d6 {[%clk 0:02:50.4]} 4.
Ne2 {[%clk 0:03:00.8]} 4... c5 {[%clk 0:02:48.8]} 5. O-O {[%clk 0:03:00.3]} 5...
Nc6 {[%clk 0:02:49.1]} 6. c4 {[%clk 0:03:00.4]} 6... e6 {[%clk 0:02:48.5]} 7.
Nbc3 {[%clk 0:03:00.4]} 7... Nge7 {[%clk 0:02:48.9]} 8. b3 {[%clk 0:03:00.6]}
8... Nd4 {[%clk 0:02:46.7]} 9. Bb2 {[%clk 0:02:59.7]} 9... Nec6 {[%clk
0:02:45.8]} 10. h3 {[%clk 0:02:54.9]} 10... O-O {[%clk 0:02:43.6]} 11. Nxd4
{[%clk 0:02:53.7]} 11... Nxd4 {[%clk 0:02:32.1]} 12. d3 {[%clk 0:02:53.7]} 12...
f5 {[%clk 0:02:29.9]} 13. Ne2 {[%clk 0:02:50.7]} 13... Nxe2+ {[%clk 0:02:17.3]}
14. Qxe2 {[%clk 0:02:49.5]} 14... Bxb2 {[%clk 0:02:07.3]} 15. Qxb2 {[%clk
0:02:48.9]} 15... f4 {[%clk 0:02:07.8]} 16. Rfe1 {[%clk 0:02:36.5]} 16... e5
{[%clk 0:02:05.6]} 17. Qe2 {[%clk 0:02:29.5]} 17... Qg5 {[%clk 0:01:51.6]} 18.
g4 {[%clk 0:02:28.2]} 18... h5 {[%clk 0:01:46]} 19. f3 {[%clk 0:02:28.3]} 19...
Be6 {[%clk 0:01:40.9]} 20. Qf2 {[%clk 0:02:25.1]} 20... hxg4 {[%clk 0:01:39.3]}
21. hxg4 {[%clk 0:02:23.9]} 21... Kg7 {[%clk 0:01:38.5]} 22. Kf1 {[%clk
0:02:23.7]} 22... a5 {[%clk 0:01:13.6]} 23. a4 {[%clk 0:02:10]} 23... Rh8 {[%clk
0:01:11]} 24. Ke2 {[%clk 0:02:09]} 24... Rh4 {[%clk 0:01:05.8]} 25. Rh1 {[%clk
0:02:08.8]} 25... Rah8 {[%clk 0:01:05.9]} 26. Rxh4 {[%clk 0:02:05.8]} 26... Rxh4
{[%clk 0:01:06.8]} 27. Rh1 {[%clk 0:02:04.5]} 27... Rxh1 {[%clk 0:01:06.3]} 28.
Bxh1 {[%clk 0:02:04.4]} 28... Qd8 {[%clk 0:01:06.3]} 29. Qh2 {[%clk 0:01:56.7]}
29... g5 {[%clk 0:01:00.7]} 30. Kd2 {[%clk 0:01:51.2]} 30... Bf7 {[%clk
0:00:59.9]} 31. Kc2 {[%clk 0:01:50.7]} 31... Qb6 {[%clk 0:01:00]} 32. Qd2 {[%clk
0:01:46.3]} 32... Qa7 {[%clk 0:00:59.4]} 33. Bg2 {[%clk 0:01:46.1]} 33... Qa8
{[%clk 0:00:56.2]} 34. Bf1 {[%clk 0:01:46]} 34... Qd8 {[%clk 0:00:51.8]} 35. Qh2
{[%clk 0:01:43]} 35... Bg6 {[%clk 0:00:50.8]} 36. Qd2 {[%clk 0:01:37.5]} 36...
Qb6 {[%clk 0:00:47.6]} 37. Be2 {[%clk 0:01:37.2]} 37... Qa7 {[%clk 0:00:46.2]}
38. Bd1 {[%clk 0:01:36.7]} 38... Qa8 {[%clk 0:00:45.5]} 39. Qh2 {[%clk 0:01:36]}
39... Qd8 {[%clk 0:00:44]} 40. Qd2 {[%clk 0:01:34.2]} 40... Bf7 {[%clk 0:00:44]}
41. Qh2 {[%clk 0:01:32.2]} 41... Qb6 {[%clk 0:00:43]} 42. Qd2 {[%clk 0:01:31.6]}
42... Be6 {[%clk 0:00:43]} 43. Be2 {[%clk 0:01:28]} 43... Qd8 {[%clk 0:00:41.9]}
44. Bd1 {[%clk 0:01:27.8]} 44... b6 {[%clk 0:00:39]} 45. Qh2 {[%clk 0:01:26.6]}
45... Bf7 {[%clk 0:00:39.2]} 46. Be2 {[%clk 0:01:24.7]} 46... Qe8 {[%clk
0:00:38.5]} 47. Bf1 {[%clk 0:01:24.2]} 47... Be6 {[%clk 0:00:38.5]} 48. Be2
{[%clk 0:01:19.6]} 48... Qd7 {[%clk 0:00:38.4]} 49. Bd1 {[%clk 0:01:18.3]} 49...
Qe7 {[%clk 0:00:37.8]} 50. Kb2 {[%clk 0:01:18.1]} 50... Bd7 {[%clk 0:00:37.8]}
51. Qh5 {[%clk 0:01:16.9]} 51... Be8 {[%clk 0:00:37]} 52. Qh2 {[%clk 0:01:16.5]}
52... Bg6 {[%clk 0:00:36.6]} 53. Be2 {[%clk 0:01:15.4]} 53... Qd8 {[%clk
0:00:36.1]} 54. Bf1 {[%clk 0:01:14.4]} 54... Qg8 {[%clk 0:00:33.6]} 55. Be2
{[%clk 0:01:13.2]} 55... Be8 {[%clk 0:00:33.5]} 56. Bf1 {[%clk 0:01:12]} 56...
Qe6 {[%clk 0:00:30.7]} 57. Be2 {[%clk 0:01:11]} 57... Bg6 {[%clk 0:00:30]} 58.
Bd1 {[%clk 0:01:10.2]} 58... Qc8 {[%clk 0:00:29.5]} 59. Qh1 {[%clk 0:01:09.1]}
59... d5 {[%clk 0:00:28.5]} 60. cxd5 {[%clk 0:01:01]} 60... c4 {[%clk
0:00:28.8]} 61. dxc4 {[%clk 0:00:59.9]} 61... Qc5 {[%clk 0:00:28.8]} 62. Qe1
{[%clk 0:00:56.4]} 62... Qd4+ {[%clk 0:00:28.9]} 63. Ka2 {[%clk 0:00:56.3]}
63... Be8 {[%clk 0:00:26.6]} 64. Qe2 {[%clk 0:00:53.8]} 64... Kf6 {[%clk
0:00:23.8]} 65. Bc2 {[%clk 0:00:53.2]} 65... Ke7 {[%clk 0:00:22.7]} 66. Qd3
{[%clk 0:00:52.9]} 66... Qf2 {[%clk 0:00:20.2]} 67. Ka3 {[%clk 0:00:50.1]} 67...
Kd6 {[%clk 0:00:20]} 68. Kb2 {[%clk 0:00:48]} 68... Bd7 {[%clk 0:00:18.2]} 69.
Qd1 {[%clk 0:00:47]} 69... Be8 {[%clk 0:00:17.4]} 70. Qh1 {[%clk 0:00:45.9]}
70... Kc5 {[%clk 0:00:16.2]} 71. Qh6 {[%clk 0:00:40.5]} 71... Qd4+ {[%clk
0:00:15.8]} 72. Ka2 {[%clk 0:00:39.6]} 72... Kb4 {[%clk 0:00:16.2]} 73. Qxg5
{[%clk 0:00:36.9]} 73... Kc3 {[%clk 0:00:15.7]} 74. Qh4 {[%clk 0:00:32.3]} 74...
Kxc2 {[%clk 0:00:14.9]} 75. Qh2+ {[%clk 0:00:31.5]} 75... Kc3 {[%clk 0:00:14.9]}
76. Qb2+ {[%clk 0:00:30.6]} 76... Kd3 {[%clk 0:00:14.3]} 77. g5 {[%clk
0:00:26.6]} 77... Ke3 {[%clk 0:00:10.5]} 78. Qc1+ {[%clk 0:00:22.8]} 78... Kxf3
{[%clk 0:00:09.7]} 79. Qh1+ {[%clk 0:00:22.4]} 79... Kg3 {[%clk 0:00:09.4]} 80.
Qe1+ {[%clk 0:00:17.8]} 80... Qf2+ {[%clk 0:00:07.6]} 81. Qxf2+ {[%clk
0:00:16.8]} 81... Kxf2 {[%clk 0:00:08.5]} 82. d6 {[%clk 0:00:16.8]} 82... Ke3
{[%clk 0:00:08.6]} 83. g6 {[%clk 0:00:16.7]} 83... Bxg6 {[%clk 0:00:06.8]} 84.
d7 {[%clk 0:00:15.6]} 84... f3 {[%clk 0:00:07.4]} 85. d8=Q {[%clk 0:00:15.3]}
85... f2 {[%clk 0:00:07.5]} 86. Qxb6+ {[%clk 0:00:14.8]} 86... Ke2 {[%clk
0:00:06.9]} 87. Qxg6 {[%clk 0:00:10.8]} 87... f1=Q {[%clk 0:00:07.2]} 88. Qf5
{[%clk 0:00:10]} 88... Qg2 {[%clk 0:00:06.1]} 89. Qxe5 {[%clk 0:00:07.8]} 89...
Kd3+ {[%clk 0:00:05.8]} 90. Qb2 {[%clk 0:00:06.4]} 90... Qg8 {[%clk 0:00:02.8]}
91. e5 {[%clk 0:00:04.7]} 91... Qe8 {[%clk 0:00:02]} 92. Qb1+ {[%clk 0:00:03.3]}
92... Kc3 {[%clk 0:00:01.2]} 93. Qc1+ {[%clk 0:00:02.4]} 93... Kd3 {[%clk
0:00:01.7]} 94. Qd1+ {[%clk 0:00:01.6]} 94... Kc3 {[%clk 0:00:01.7]} 95. Qe1+
{[%clk 0:00:01.1]} 95... Kc2 {[%clk 0:00:01.3]} 96. e6 {[%clk 0:00:02]} 96...
Qb8 {[%clk 0:00:01.4]} 97. Qe2+ {[%clk 0:00:01.9]} 97... Kc1 {[%clk 0:00:01.9]}
98. Qe3+ {[%clk 0:00:01.6]} 98... Kc2 {[%clk 0:00:02]} 99. Qe2+ {[%clk
0:00:01.3]} 99... Kc1 {[%clk 0:00:02]} 0-1

[Event "*** SCC Grand Prix: Titled Tuesday Blitz"]
[Site "Chess.com"]
[Date "2020.08.11"]
[Round "6"]
[White "Harsha_Bharathakoti"]
[Black "AnonymousIM2023"]
[Result "1-0"]
[WhiteElo "2851"]
[BlackElo "2655"]
[TimeControl "180+1"]
[EndTime "11:10:10 PDT"]
[Termination "Harsha_Bharathakoti won by resignation"]

1. Nf3 {[%clk 0:03:00.9]} 1... c5 {[%clk 0:02:59.8]} 2. e4 {[%clk 0:02:59.1]}
2... Nc6 {[%clk 0:02:59.7]} 3. Bb5 {[%clk 0:02:57.9]} 3... g6 {[%clk 0:02:59.8]}
4. Bxc6 {[%clk 0:02:54.9]} 4... dxc6 {[%clk 0:03:00.7]} 5. h3 {[%clk 0:02:53.4]}
5... Qc7 {[%clk 0:03:00.8]} 6. O-O {[%clk 0:02:53.8]} 6... e5 {[%clk 0:03:00.8]}
7. d3 {[%clk 0:02:54.6]} 7... Nf6 {[%clk 0:03:00.9]} 8. Be3 {[%clk 0:02:55.3]}
8... Nh5 {[%clk 0:03:01]} 9. a3 {[%clk 0:02:56]} 9... a5 {[%clk 0:03:00.2]} 10.
Nbd2 {[%clk 0:02:54.9]} 10... f6 {[%clk 0:02:59.5]} 11. Nc4 {[%clk 0:02:53.8]}
11... Be6 {[%clk 0:02:57.2]} 12. Qe2 {[%clk 0:02:43.9]} 12... Be7 {[%clk
0:02:54.8]} 13. b4 {[%clk 0:02:35.5]} 13... axb4 {[%clk 0:02:12.7]} 14. axb4
{[%clk 0:02:34.9]} 14... O-O {[%clk 0:02:12.6]} 15. bxc5 {[%clk 0:02:15.5]}
15... Bxc4 {[%clk 0:02:11.8]} 16. dxc4 {[%clk 0:02:16.4]} 16... Ng7 {[%clk
0:02:11.1]} 17. Nd2 {[%clk 0:02:16.2]} 17... Ne6 {[%clk 0:02:09.4]} 18. Nb3
{[%clk 0:02:16.4]} 18... Rfd8 {[%clk 0:01:47.7]} 19. g3 {[%clk 0:02:09.7]} 19...
Qd7 {[%clk 0:01:37.5]} 20. Kg2 {[%clk 0:02:07.1]} 20... Qe8 {[%clk 0:01:35.3]}
21. Rfb1 {[%clk 0:01:51.5]} 21... Qf7 {[%clk 0:01:10.6]} 22. Qe1 {[%clk
0:01:41.1]} 22... Nd4 {[%clk 0:00:51.7]} 23. Bxd4 {[%clk 0:01:39.1]} 23... exd4
{[%clk 0:00:52.6]} 24. Qe2 {[%clk 0:01:33.6]} 24... Rxa1 {[%clk 0:00:46.6]} 25.
Rxa1 {[%clk 0:01:32.9]} 25... Bf8 {[%clk 0:00:45.7]} 26. Rd1 {[%clk 0:01:23]}
26... h5 {[%clk 0:00:24.8]} 27. h4 {[%clk 0:01:22.3]} 27... Kh7 {[%clk
0:00:23.8]} 28. Rxd4 {[%clk 0:01:21.5]} 28... Rxd4 {[%clk 0:00:23.3]} 29. Nxd4
{[%clk 0:01:22.4]} 29... Bxc5 {[%clk 0:00:23.8]} 30. Nf3 {[%clk 0:01:23.1]}
30... Be7 {[%clk 0:00:19.6]} 31. e5 {[%clk 0:01:23.3]} 31... fxe5 {[%clk
0:00:17.2]} 32. Qxe5 {[%clk 0:01:24]} 32... Bf6 {[%clk 0:00:17.1]} 33. Qd6
{[%clk 0:01:17.9]} 33... Kg7 {[%clk 0:00:15]} 34. Ne5 {[%clk 0:01:09.2]} 34...
Bxe5 {[%clk 0:00:11.8]} 35. Qxe5+ {[%clk 0:01:10.1]} 35... Kh7 {[%clk
0:00:12.5]} 36. c5 {[%clk 0:01:10.2]} 36... Qd7 {[%clk 0:00:11.7]} 37. c3 {[%clk
0:01:04.2]} 37... Qf7 {[%clk 0:00:11.6]} 38. Qd6 {[%clk 0:01:01.5]} 38... Kg7
{[%clk 0:00:08.2]} 39. Qd4+ {[%clk 0:00:53.8]} 39... Kh7 {[%clk 0:00:08]} 40. c4
{[%clk 0:00:54.3]} 40... Qe7 {[%clk 0:00:06.7]} 41. Kf3 {[%clk 0:00:51.5]} 41...
Qf7+ {[%clk 0:00:06.7]} 42. Ke3 {[%clk 0:00:51.9]} 42... Qe7+ {[%clk 0:00:06.2]}
43. Kd3 {[%clk 0:00:52.6]} 43... Qf7 {[%clk 0:00:06.7]} 44. Kc3 {[%clk
0:00:46.2]} 44... Qe7 {[%clk 0:00:06.7]} 45. Qe3 {[%clk 0:00:43.5]} 45... Qf6+
{[%clk 0:00:06.1]} 46. Kb3 {[%clk 0:00:39.5]} 46... Qa1 {[%clk 0:00:04.3]} 47.
Kc2 {[%clk 0:00:35.9]} 47... Qa2+ {[%clk 0:00:04.2]} 48. Kd3 {[%clk 0:00:36.8]}
48... Qb3+ {[%clk 0:00:04.4]} 49. Kd4 {[%clk 0:00:37.7]} 49... Qb2+ {[%clk
0:00:04.8]} 50. Ke4 {[%clk 0:00:38.3]} 50... Qf6 {[%clk 0:00:04.9]} 51. Qd4
{[%clk 0:00:32.1]} 51... Qe6+ {[%clk 0:00:04.2]} 52. Kf3 {[%clk 0:00:31.2]}
52... Qf5+ {[%clk 0:00:04.2]} 53. Kg2 {[%clk 0:00:30.7]} 53... Qf7 {[%clk
0:00:04.8]} 54. f3 {[%clk 0:00:30.5]} 54... Qe7 {[%clk 0:00:04.6]} 55. Kf2
{[%clk 0:00:31.2]} 55... Qf7 {[%clk 0:00:04.8]} 56. Qe4 {[%clk 0:00:26.6]} 56...
Qf8 {[%clk 0:00:03.4]} 57. Qe5 {[%clk 0:00:26.2]} 57... Qf7 {[%clk 0:00:03.5]}
58. Qd4 {[%clk 0:00:23.9]} 58... Qe7 {[%clk 0:00:03.9]} 59. Kf1 {[%clk
0:00:20.6]} 59... Qf7 {[%clk 0:00:04]} 60. Kg2 {[%clk 0:00:21.3]} 60... Qe7
{[%clk 0:00:04.3]} 61. Kf2 {[%clk 0:00:22]} 61... Qf7 {[%clk 0:00:04.8]} 62. g4
{[%clk 0:00:22.7]} 62... hxg4 {[%clk 0:00:04.9]} 63. Qxg4 {[%clk 0:00:23.6]}
63... Qe7 {[%clk 0:00:04.6]} 64. Qd4 {[%clk 0:00:24.2]} 64... Qe6 {[%clk
0:00:04.7]} 65. Kg3 {[%clk 0:00:24.2]} 65... Qe7 {[%clk 0:00:04.3]} 66. Qd6
{[%clk 0:00:24.1]} 66... Qe1+ {[%clk 0:00:04.2]} 67. Kg4 {[%clk 0:00:23.2]}
67... Qg1+ {[%clk 0:00:04.5]} 68. Kf4 {[%clk 0:00:22.7]} 68... Qh2+ {[%clk
0:00:04.8]} 69. Ke4 {[%clk 0:00:23.4]} 69... Qxh4+ {[%clk 0:00:05.1]} 70. Ke5
{[%clk 0:00:20.4]} 70... Qg3+ {[%clk 0:00:05.2]} 71. Ke6 {[%clk 0:00:21.3]}
71... Qxf3 {[%clk 0:00:05.2]} 72. Qe7+ {[%clk 0:00:18.8]} 72... Kh6 {[%clk
0:00:05.3]} 73. Qxb7 {[%clk 0:00:19.4]} 73... Qe4+ {[%clk 0:00:05.3]} 74. Kd6
{[%clk 0:00:20.1]} 74... Qxc4 {[%clk 0:00:05]} 75. Qxc6 {[%clk 0:00:19.5]} 75...
g5 {[%clk 0:00:04.5]} 76. Qh1+ {[%clk 0:00:16.3]} 76... Kg6 {[%clk 0:00:04.6]}
77. Qb1+ {[%clk 0:00:15.6]} 77... Kh6 {[%clk 0:00:04.3]} 78. c6 {[%clk
0:00:16.3]} 78... Qd4+ {[%clk 0:00:04.8]} 79. Kc7 {[%clk 0:00:16.5]} 79... g4
{[%clk 0:00:04.6]} 80. Kb7 {[%clk 0:00:16]} 80... Qd5 {[%clk 0:00:03.7]} 81.
Qc1+ {[%clk 0:00:15.1]} 81... Kh5 {[%clk 0:00:04]} 82. Kb6 {[%clk 0:00:14.3]}
82... Qd6 {[%clk 0:00:03.7]} 83. Qh1+ {[%clk 0:00:10.1]} 83... Kg5 {[%clk
0:00:03.5]} 84. Qc1+ {[%clk 0:00:10.8]} 84... Kh4 {[%clk 0:00:03.8]} 85. Kb5
{[%clk 0:00:09.5]} 85... Qd5+ {[%clk 0:00:03]} 86. Kb6 {[%clk 0:00:07.7]} 86...
Qd6 {[%clk 0:00:03]} 87. Kb7 {[%clk 0:00:08.4]} 87... Qd5 {[%clk 0:00:03.1]} 88.
Kb8 {[%clk 0:00:06.3]} 88... Qb5+ {[%clk 0:00:02.8]} 89. Ka7 {[%clk 0:00:06.1]}
89... Qa5+ {[%clk 0:00:03]} 90. Kb7 {[%clk 0:00:06.9]} 90... Qb5+ {[%clk
0:00:03.9]} 91. Kc8 {[%clk 0:00:07.6]} 91... Qf5+ {[%clk 0:00:04]} 92. Kd8
{[%clk 0:00:08.4]} 92... Qf6+ {[%clk 0:00:04]} 93. Kd7 {[%clk 0:00:09.1]} 93...
Qf7+ {[%clk 0:00:04.6]} 94. Kd6 {[%clk 0:00:09.9]} 94... Qf6+ {[%clk 0:00:05.1]}
95. Kc5 {[%clk 0:00:10.7]} 95... Qe5+ {[%clk 0:00:05.4]} 96. Kb6 {[%clk
0:00:11.5]} 96... Qb8+ {[%clk 0:00:05.8]} 97. Ka6 {[%clk 0:00:11.6]} 97... Qa8+
{[%clk 0:00:05.8]} 98. Kb5 {[%clk 0:00:12.3]} 98... Qb8+ {[%clk 0:00:06.7]} 99.
Kc4 {[%clk 0:00:12.9]} 99... Qd6 {[%clk 0:00:06.1]} 100. Qh1+ {[%clk 0:00:11.3]}
100... Kg5 {[%clk 0:00:06]} 101. Qd5+ {[%clk 0:00:10.9]} 101... Qxd5+ {[%clk
0:00:05.5]} 102. Kxd5 {[%clk 0:00:11.8]} 102... g3 {[%clk 0:00:05.9]} 103. c7
{[%clk 0:00:12.7]} 103... g2 {[%clk 0:00:06.3]} 104. c8=Q {[%clk 0:00:13.6]}
104... Kf4 {[%clk 0:00:03.9]} 105. Qc5 {[%clk 0:00:12]} 105... Kg3 {[%clk
0:00:03.1]} 106. Qg1 {[%clk 0:00:12.9]} 106... Kf3 {[%clk 0:00:03.7]} 107. Kd4
{[%clk 0:00:13.3]} 1-0

[Event "*** SCC Grand Prix: Titled Tuesday Blitz"]
[Site "Chess.com"]
[Date "2020.08.11"]
[Round "7"]
[White "GracefulYear"]
[Black "Sekar24"]
[Result "0-1"]
[WhiteElo "2369"]
[BlackElo "2508"]
[TimeControl "180+1"]
[EndTime "11:11:58 PDT"]
[Termination "Sekar24 won by resignation"]

1. d4 {[%clk 0:03:00.5]} 1... Nf6 {[%clk 0:02:59.7]} 2. c4 {[%clk 0:03:01.1]}
2... e6 {[%clk 0:02:59.9]} 3. Nf3 {[%clk 0:03:01.8]} 3... d5 {[%clk 0:03:00.1]}
4. g3 {[%clk 0:03:02.7]} 4... dxc4 {[%clk 0:02:59]} 5. Bg2 {[%clk 0:03:03.6]}
5... a6 {[%clk 0:02:58.8]} 6. O-O {[%clk 0:03:04.2]} 6... Nc6 {[%clk 0:02:58.9]}
7. a4 {[%clk 0:03:03.5]} 7... Bd7 {[%clk 0:02:56]} 8. Qc2 {[%clk 0:03:02.5]}
8... b5 {[%clk 0:02:53.3]} 9. b3 {[%clk 0:02:57.9]} 9... cxb3 {[%clk 0:02:42.8]}
10. Qxb3 {[%clk 0:02:58.6]} 10... bxa4 {[%clk 0:02:43.1]} 11. Qxa4 {[%clk
0:02:55.6]} 11... Bd6 {[%clk 0:02:42.6]} 12. Ba3 {[%clk 0:02:53.6]} 12... O-O
{[%clk 0:02:41.8]} 13. Bb4 {[%clk 0:02:47.3]} 13... Nxb4 {[%clk 0:02:40.7]} 0-1